bitfinex/quotes_BTCUSD_20220303
["timestamp","ask_amount","ask_price","bid_price","bid_amount"]
[1646337484735,0.15930606,42248.0,42247.0,0.28035542]
[1646337484940,0.145,42249.0,42247.0,0.28035542]
[1646337485836,0.15988035,42248.0,42247.0,0.28035542]
[1646337487338,0.145,42249.0,42247.0,0.28035542]
[1646337487736,0.3622,42248.0,42247.0,0.28035542]
[1646337487940,0.95,42247.0,42243.0,7.575e-05]
[1646337488288,0.95,42247.0,42229.0,0.29211151]
[1646337488289,0.02368,42243.0,42229.0,0.29211151]
[1646337488488,0.145,42238.0,42228.0,0.059227]
[1646337488686,0.145,42238.0,42229.0,0.3622]
[1646337489288,0.145,42238.0,42229.0,0.3662]
[1646337490488,0.145,42238.0,42232.0,0.279623]
[1646337491086,0.10761847,42237.0,42232.0,0.279623]
[1646337491287,0.10761847,42237.0,42232.0,0.282623]
[1646337492134,0.10761847,42237.0,42232.0,0.28274311]
[1646337492534,0.1534428,42235.0,42232.0,0.27986322]
[1646337492737,0.1534428,42235.0,42232.0,0.27998333]
[1646337492738,0.2984428,42235.0,42232.0,0.27998333]
[1646337492936,0.3,42234.0,42232.0,0.00036033]
[1646337493135,0.3,42234.0,42232.0,0.00024022]
[1646337493434,0.3,42234.0,42227.0,0.0235]
[1646337493635,0.18137445,42231.0,42226.0,0.00032256]
[1646337493836,0.145,42227.0,42218.0,0.5]
[1646337494236,0.130236,42231.0,42218.0,0.5]
[1646337494436,0.145,42223.0,42218.0,0.5]
[1646337494634,0.145,42223.0,42219.0,0.3622]
[1646337494836,0.145,42223.0,42221.0,0.279801]
[1646337495786,0.145,42223.0,42220.0,0.362191]
[1646337497388,0.145,42223.0,42220.0,0.364191]
[1646337497587,0.145,42223.0,42220.0,0.002]
[1646337498586,0.145,42223.0,42219.0,7.19e-05]
[1646337498786,0.145,42223.0,42220.0,0.3622]
[1646337499390,0.32225749,42223.0,42220.0,0.3622]
[1646337499636,0.145,42223.0,42220.0,0.3622]
[1646337501038,0.145,42223.0,42219.0,7.19e-05]
[1646337501338,0.145,42223.0,42215.0,0.002]
[1646337501538,0.145,42223.0,42219.0,0.00010955]
[1646337501939,0.145,42223.0,42219.0,0.0002191]
[1646337502138,0.145,42223.0,42219.0,0.00032865]
[1646337502339,0.145,42223.0,42220.0,0.3622]
[1646337502539,0.0361863,42228.0,42220.0,0.3622]
[1646337502739,0.145,42225.0,42220.0,0.3622]
[1646337502940,0.0361863,42228.0,42222.0,0.3622]
[1646337503145,0.0361863,42228.0,42222.0,0.36231173]
[1646337503785,0.0361863,42228.0,42222.0,0.36242346]
[1646337503991,0.0361863,42228.0,42222.0,0.36253519]
[1646337504187,0.0361863,42228.0,42222.0,0.36231173]
[1646337504386,0.0361863,42228.0,42222.0,0.3622]
[1646337505387,0.0361863,42228.0,42217.0,0.002]
[1646337505586,0.0361863,42228.0,42218.0,0.3622]
[1646337505789,0.14198,42233.0,42220.0,0.279813]
[1646337505986,0.02368,42233.0,42217.0,0.002]
[1646337506187,0.145,42227.0,42218.0,0.0144411]
[1646337506386,0.145,42227.0,42224.0,0.00013959]
[1646337506588,0.10505052,42234.0,42224.0,0.00013959]
[1646337506787,0.10505052,42234.0,42224.0,0.00027918]
[1646337507051,0.10505052,42234.0,42224.0,0.00041877]
[1646337507256,0.09322052,42234.0,42224.0,0.00041877]
[1646337507453,0.18915897,42229.0,42224.0,0.00027918]
[1646337507654,0.18915897,42229.0,42224.0,0.00013959]
[1646337507853,0.09322052,42234.0,42220.0,0.362287]
[1646337508056,0.09322052,42234.0,42227.0,0.00013958]
[1646337508257,0.145,42228.0,42227.0,0.00013958]
[1646337508456,0.145,42228.0,42227.0,0.00027916]
[1646337508653,0.145,42228.0,42227.0,0.00041874]
[1646337508854,0.145,42228.0,42227.0,0.00027916]
[1646337509055,0.0242005,42235.0,42227.0,0.00027916]
[1646337509056,0.0242005,42235.0,42227.0,0.50242658]
[1646337509256,0.4504,42248.0,42229.0,0.01233256]
[1646337509257,0.18552683,42243.0,42229.0,0.01233256]
[1646337509457,0.18552683,42243.0,42231.0,0.05921567]
[1646337509654,0.1853,42247.0,42233.0,0.01466936]
[1646337509853,0.1853,42247.0,42234.0,0.181207]
[1646337510053,0.1853,42247.0,42235.0,2.74955959]
[1646337510054,0.11611773,42239.0,42235.0,2.74955959]
[1646337510255,0.15352776,42242.0,42236.0,0.362193]
[1646337510652,0.20898,42247.0,42236.0,0.362193]
[1646337510887,0.02368,42247.0,42236.0,0.362193]
[1646337511385,0.02368,42247.0,42237.0,0.181198]
[1646337511386,0.11996354,42239.0,42237.0,0.181198]
[1646337513484,0.11996354,42239.0,42237.0,0.183198]
[1646337513689,0.16759877,42238.0,42237.0,0.183198]
[1646337514287,0.11996354,42239.0,42237.0,0.183198]
[1646337514536,0.11996354,42239.0,42237.0,0.181198]
[1646337514737,0.11996354,42239.0,42236.0,0.362193]
[1646337514936,0.06996354,42239.0,42236.0,0.362193]
[1646337516242,0.145,42242.0,42236.0,0.362193]
[1646337517341,0.145,42242.0,42236.0,0.364193]
[1646337517939,0.145,42242.0,42238.0,0.181192]
[1646337518391,0.145,42242.0,42238.0,0.166192]
[1646337519191,0.11029269,42244.0,42238.0,0.166192]
[1646337519391,0.145,42243.0,42238.0,0.16630469]
[1646337519994,0.145,42243.0,42238.0,0.16653007]
[1646337520393,0.145,42243.0,42238.0,0.16641738]
[1646337520595,0.11029269,42244.0,42238.0,0.16630469]
[1646337520796,0.18757559,42247.0,42238.0,0.166192]
[1646337521095,0.15683,42248.0,42240.0,0.362156]
[1646337521298,0.145,42248.0,42240.0,0.362156]
[1646337522154,0.145,42248.0,42242.0,0.16618]
[1646337522358,0.145,42248.0,42241.0,0.3]
[1646337522359,0.145,42248.0,42244.0,0.362119]
[1646337522554,0.145,42248.0,42237.0,0.3]
[1646337522555,0.145,42248.0,42243.0,0.166175]
[1646337522954,0.02368,42248.0,42242.0,0.00014404]
[1646337523153,0.16221296,42245.0,42243.0,0.166073]
[1646337523355,0.10912141,42245.0,42243.0,0.001]
[1646337523555,0.10912141,42245.0,42244.0,0.362233]
[1646337524256,0.10912141,42245.0,42244.0,0.166059]
[1646337524454,0.10912141,42245.0,42244.0,0.362233]
[1646337524655,0.25412141,42245.0,42244.0,0.362233]
[1646337526196,0.45716435,42245.0,42244.0,0.362233]
[1646337526791,0.25412141,42245.0,42244.0,0.109483]
[1646337527392,0.25412141,42245.0,42244.0,0.250483]
[1646337528594,0.25412141,42245.0,42244.0,0.249483]
[1646337528796,0.43191119,42245.0,42244.0,0.14]
[1646337529536,0.25412141,42245.0,42244.0,0.415542]
[1646337530136,0.10912141,42245.0,42244.0,0.415542]
[1646337530737,0.25412141,42245.0,42244.0,0.415542]
[1646337536000,0.145,42245.0,42244.0,0.415542]
[1646337536400,0.145,42247.0,42244.0,0.415542]
[1646337536701,0.145,42247.0,42245.0,0.275534]
[1646337536899,0.145,42247.0,42243.0,0.275547]
[1646337537335,0.26649378,42248.0,42243.0,0.275547]
[1646337537535,0.18185349,42244.0,42243.0,0.275547]
[1646337537736,0.32685349,42244.0,42243.0,0.415547]
[1646337537937,0.68908249,42244.0,42242.0,0.00023882]
[1646337538138,0.0473,42243.0,42242.0,0.00011941]
[1646337538338,0.409529,42243.0,42229.0,0.3]
[1646337538537,0.145,42234.0,42227.0,0.3]
[1646337538840,0.145,42234.0,42227.0,0.275668]
[1646337539037,0.145,42234.0,42228.0,0.3]
[1646337539237,0.145,42234.0,42229.0,0.275661]
[1646337539643,0.0473,42237.0,42229.0,0.275661]
[1646337539840,0.1881,42246.0,42229.0,0.275661]
[1646337539841,0.19993,42246.0,42230.0,0.01024394]
[1646337540038,0.145,42240.0,42231.0,0.275639]
[1646337540236,0.19993,42246.0,42231.0,0.275639]
[1646337540237,0.145,42245.0,42232.0,0.3]
[1646337540441,0.20905724,42244.0,42233.0,0.275624]
[1646337540801,0.32220614,42244.0,42233.0,0.275624]
[1646337541202,0.1131489,42244.0,42233.0,0.275624]
[1646337541401,0.1131489,42244.0,42233.0,0.277624]
[1646337541801,0.1945263,42238.0,42233.0,0.277624]
[1646337542001,0.145,42241.0,42237.0,0.275599]
[1646337542403,0.145,42241.0,42236.0,0.00010109]
[1646337542604,0.145,42238.0,42237.0,0.275597]
[1646337542804,0.145,42238.0,42236.0,0.00030327]
[1646337542805,0.10872858,42237.0,42236.0,0.00030327]
[1646337543006,0.88181481,42237.0,42236.0,2.18e-06]
[1646337543204,0.88181481,42237.0,42233.0,0.23]
[1646337543404,0.362229,42236.0,42233.0,0.23]
[1646337543605,0.507229,42234.0,42233.0,0.23]
[1646337543804,0.554529,42234.0,42233.0,0.23]
[1646337545436,0.558529,42234.0,42233.0,0.23]
[1646337546339,0.1963,42234.0,42233.0,0.23]
[1646337546537,0.0513,42234.0,42233.0,0.23]
[1646337546737,0.0473,42234.0,42233.0,0.23]
[1646337547838,0.25548845,42234.0,42233.0,0.23]
[1646337548488,0.0473,42234.0,42233.0,0.23]
[1646337549587,0.145,42238.0,42233.0,0.23]
[1646337549787,0.19243821,42239.0,42235.0,0.275615]
[1646337549788,0.33743821,42239.0,42235.0,0.275615]
[1646337549987,0.33743821,42239.0,42234.0,0.27562]
[1646337550183,0.33743821,42239.0,42234.0,0.275621]
[1646337550384,0.49775623,42239.0,42234.0,0.00014284]
[1646337550583,0.43200825,42239.0,42234.0,0.00014284]
[1646337550984,0.42700825,42239.0,42234.0,0.00028568]
[1646337551185,0.42700825,42239.0,42234.0,0.00042852]
[1646337551386,0.42700825,42239.0,42234.0,0.00028568]
[1646337551586,0.42700825,42239.0,42234.0,0.001]
[1646337552842,0.64330412,42239.0,42233.0,0.23]
[1646337553041,0.49830412,42239.0,42233.0,0.23]
[1646337553240,0.145,42236.0,42233.0,0.23]
[1646337554641,0.28200825,42239.0,42233.0,0.23]
[1646337555243,0.145,42234.0,42233.0,0.505628]
[1646337555443,0.28200825,42239.0,42233.0,0.23]
[1646337555887,0.28200825,42239.0,42234.0,0.00022896]
[1646337556287,0.28200825,42239.0,42234.0,0.00011448]
[1646337556488,0.28200825,42239.0,42233.0,0.23]
[1646337556689,0.28200825,42239.0,42234.0,0.27501402]
[1646337556891,0.28200825,42239.0,42234.0,0.2751285]
[1646337557091,0.28200825,42239.0,42234.0,0.00011448]
[1646337557292,0.20193556,42237.0,42234.0,0.00022896]
[1646337557494,0.28200825,42239.0,42234.0,0.00034344]
[1646337557896,0.28200825,42239.0,42234.0,0.00022896]
[1646337558093,0.28200825,42239.0,42233.0,0.23]
[1646337558094,0.14187004,42239.0,42233.0,0.23]
[1646337558494,0.14187004,42239.0,42234.0,0.00011136]
[1646337558894,0.0473,42239.0,42234.0,0.00011136]
[1646337559096,0.20798007,42243.0,42234.0,0.30022272]
[1646337559297,0.145,42244.0,42234.0,0.30033408]
[1646337559535,0.145,42244.0,42234.0,0.30222272]
[1646337559736,0.145,42244.0,42234.0,0.30211136]
[1646337559941,0.145,42244.0,42235.0,0.275001]
[1646337560139,0.1881,42246.0,42235.0,0.275001]
[1646337560339,0.01183,42248.0,42239.0,0.274969]
[1646337560540,0.0362672,42249.0,42238.0,2.17919244]
[1646337560541,0.00012709,42247.0,42241.0,0.274955]
[1646337560837,0.00038127,42247.0,42241.0,0.274955]
[1646337561239,0.00012709,42247.0,42241.0,0.274955]
[1646337561439,0.16492434,42249.0,42241.0,0.276955]
[1646337562038,0.30992434,42249.0,42241.0,0.276955]
[1646337562237,0.0001271,42247.0,42241.0,0.276955]
[1646337562438,0.0002542,42247.0,42241.0,0.276955]
[1646337562638,0.0003813,42247.0,42241.0,0.276955]
[1646337562837,0.0002542,42247.0,42241.0,0.274955]
[1646337563038,0.145,42249.0,42241.0,0.274955]
[1646337563486,0.145,42249.0,42241.0,0.276955]
[1646337563889,0.00013559,42247.0,42241.0,0.276955]
[1646337564087,0.00027118,42247.0,42241.0,0.276955]
[1646337564288,0.00040677,42247.0,42241.0,0.276955]
[1646337564688,0.00013559,42247.0,42242.0,0.3]
[1646337564887,0.09614642,42250.0,42243.0,0.27494]
[1646337565187,0.09614642,42250.0,42237.0,0.274978]
[1646337565388,0.28680474,42250.0,42237.0,0.274978]
[1646337565587,0.00013559,42247.0,42243.0,0.001]
[1646337565789,0.00040677,42247.0,42244.0,0.274933]
[1646337566188,0.00027118,42247.0,42243.0,0.001]
[1646337566388,0.00013559,42247.0,42243.0,0.001]
[1646337566589,0.28680474,42250.0,42243.0,0.001]
[1646337566788,0.28680474,42250.0,42236.0,0.3]
[1646337566789,8.395e-05,42247.0,42236.0,0.3]
[1646337567045,8.395e-05,42247.0,42237.0,0.274979]
[1646337567246,0.00025185,42247.0,42237.0,0.274979]
[1646337567849,8.395e-05,42247.0,42237.0,0.274979]
[1646337568048,0.09614642,42250.0,42237.0,0.274979]
[1646337568247,8.395e-05,42247.0,42237.0,0.274979]
[1646337568647,0.0001679,42247.0,42237.0,0.274979]
[1646337568847,0.00025185,42247.0,42237.0,0.274979]
[1646337569247,0.0001679,42247.0,42237.0,0.274979]
[1646337569451,0.09361381,42243.0,42237.0,0.274979]
[1646337569750,0.09361381,42243.0,42237.0,0.276979]
[1646337570650,0.00038016,42247.0,42237.0,0.276979]
[1646337570889,0.00025344,42247.0,42237.0,0.274979]
[1646337571094,0.00012672,42247.0,42237.0,0.274979]
[1646337571388,0.145,42250.0,42237.0,0.504979]
[1646337571588,0.145,42250.0,42237.0,0.506979]
[1646337571789,0.08681447,42246.0,42237.0,0.506979]
[1646337572490,0.08681447,42246.0,42240.0,0.274963]
[1646337572691,0.08681447,42246.0,42242.0,0.274948]
[1646337572891,0.145,42250.0,42242.0,0.274948]
[1646337573091,0.113,42253.0,42242.0,0.274948]
[1646337573290,0.00016212,42247.0,42241.0,0.3]
[1646337573491,0.00032424,42247.0,42242.0,0.276943]
[1646337573693,0.00048636,42247.0,42242.0,0.276943]
[1646337574092,0.00016212,42247.0,42242.0,0.276943]
[1646337574295,0.09681936,42249.0,42242.0,0.276943]
[1646337574953,0.0002584,42247.0,42242.0,0.274943]
[1646337575151,0.0003876,42247.0,42242.0,0.274943]
[1646337575551,0.0002584,42247.0,42242.0,0.274943]
[1646337575751,0.09681936,42249.0,42242.0,0.274943]
[1646337576355,0.20592306,42246.0,42242.0,0.274943]
[1646337576553,0.0002584,42247.0,42242.0,0.274943]
[1646337576753,0.0003876,42247.0,42242.0,0.274943]
[1646337577151,0.0001292,42247.0,42242.0,0.274943]
[1646337577352,0.09681936,42249.0,42242.0,0.274943]
[1646337577552,0.17651056,42245.0,42242.0,0.274943]
[1646337578153,0.17651056,42245.0,42238.0,0.1222]
[1646337578154,0.20856855,42244.0,42238.0,0.1222]
[1646337578392,0.20856855,42244.0,42239.0,0.274968]
[1646337578591,0.25586855,42244.0,42239.0,0.274968]
[1646337578791,0.25586855,42244.0,42239.0,0.27490424]
[1646337578994,0.09777939,42240.0,42235.0,0.274935]
[1646337579590,0.09777939,42240.0,42235.0,0.276935]
[1646337580796,0.09777939,42240.0,42235.0,0.274935]
[1646337581296,0.09777939,42240.0,42235.0,0.504935]
[1646337583936,0.46868,42247.0,42235.0,0.504935]
[1646337584241,0.16868,42247.0,42235.0,0.504935]
[1646337584439,0.16883222,42247.0,42235.0,0.506935]
[1646337584638,0.32455972,42247.0,42235.0,0.506935]
[1646337584837,0.32471194,42247.0,42235.0,0.506935]
[1646337585037,0.30052382,42244.0,42235.0,0.506935]
[1646337585440,0.1047274,42244.0,42235.0,0.506935]
[1646337586908,0.1047274,42244.0,42235.0,0.504935]
[1646337587303,0.1222,42249.0,42238.0,0.06924026]
[1646337587508,0.3328,42254.0,42239.0,0.274906]
[1646337587711,0.00013998,42247.0,42239.0,0.274906]
[1646337587904,0.00027996,42247.0,42239.0,0.274906]
[1646337588105,0.00041994,42247.0,42239.0,0.274906]
[1646337588504,0.00013998,42247.0,42244.0,0.27487]
[1646337588706,0.09742393,42250.0,42247.0,0.274846]
[1646337589646,0.09742393,42250.0,42247.0,0.275846]
[1646337590539,0.3328,42254.0,42247.0,0.275846]
[1646337590740,0.00010905,42251.0,42247.0,0.274846]
[1646337590940,0.0002181,42251.0,42247.0,0.274846]
[1646337591143,0.00032715,42251.0,42247.0,0.274846]
[1646337591541,0.00010905,42251.0,42247.0,0.506846]
[1646337591741,0.09950262,42253.0,42247.0,0.506846]
[1646337592543,0.00022448,42251.0,42247.0,0.506846]
[1646337592746,0.00033672,42251.0,42247.0,0.504846]
[1646337593142,0.00011224,42251.0,42247.0,0.504846]
[1646337593387,0.09950262,42253.0,42247.0,0.504846]
[1646337593592,0.09950262,42253.0,42247.0,0.506846]
[1646337593789,0.09950262,42253.0,42247.0,0.232]
[1646337593988,0.46480929,42252.0,42247.0,0.232]
[1646337594187,0.00029786,42251.0,42248.0,0.274837]
[1646337594388,0.00044679,42251.0,42248.0,0.274837]
[1646337594691,0.00029786,42251.0,42248.0,0.274837]
[1646337594887,0.145,42252.0,42249.0,0.27483]
[1646337595091,0.145,42252.0,42248.0,0.274836]
[1646337595288,0.20685586,42251.0,42248.0,0.274836]
[1646337595488,0.40086987,42251.0,42248.0,0.274836]
[1646337595691,0.40086987,42251.0,42247.0,0.23]
[1646337595888,0.40086987,42251.0,42248.0,0.274836]
[1646337596091,0.40086987,42251.0,42247.0,0.23]
[1646337596391,0.507234,42249.0,42247.0,0.23]
[1646337596590,0.3,42248.0,42247.0,0.23]
[1646337596893,0.145,42249.0,42247.0,0.23]
[1646337597542,0.00013079,42250.0,42247.0,0.23]
[1646337597743,0.00026158,42250.0,42247.0,0.23]
[1646337597939,0.00039237,42250.0,42247.0,0.23]
[1646337598241,0.00039237,42250.0,42248.0,0.27484]
[1646337598242,0.00026158,42250.0,42248.0,0.27484]
[1646337598541,0.00013079,42250.0,42248.0,0.27484]
[1646337598745,0.1234,42259.0,42248.0,0.27484]
[1646337598939,0.1234,42259.0,42249.0,2.25796693]
[1646337599140,0.18040935,42260.0,42249.0,2.25796693]
[1646337599339,8.863e-05,42251.0,42250.0,0.274816]
[1646337599539,0.00026589,42251.0,42249.0,2.25996693]
[1646337599943,8.863e-05,42251.0,42249.0,2.25996693]
[1646337600139,0.145,42261.0,42249.0,0.002]
[1646337600342,0.95,42251.0,42244.0,0.0400684]
[1646337600544,0.145,42245.0,42236.0,0.1833838]
[1646337600801,0.10976008,42237.0,42234.0,0.00014772]
[1646337601397,0.10976008,42237.0,42234.0,0.00044316]
[1646337601701,0.507234,42236.0,42234.0,0.00029544]
[1646337601900,0.409534,42235.0,42234.0,0.00014772]
[1646337602098,0.409534,42235.0,42229.0,0.002]
[1646337602500,0.10505255,42230.0,42229.0,0.002]
[1646337602696,0.0473,42235.0,42229.0,0.002]
[1646337603098,0.95985228,42232.0,42229.0,0.002]
[1646337603499,0.95985228,42232.0,42225.0,0.275017]
[1646337603700,0.21520309,42228.0,42225.0,0.275017]
[1646337604100,0.21520309,42228.0,42224.0,0.002]
[1646337604299,0.21520309,42228.0,42217.0,0.19412877]
[1646337604300,0.35,42227.0,42218.0,0.3]
[1646337604549,0.35,42227.0,42217.0,0.19528181]
[1646337604550,0.495,42227.0,42217.0,0.18345181]
[1646337604749,0.495,42227.0,42214.0,0.07230538]
[1646337604750,0.16851779,42221.0,42214.0,0.07230538]
[1646337604949,0.16851779,42221.0,42215.0,0.015938]
[1646337605154,0.00104919,42217.0,42215.0,0.015938]
[1646337605350,0.1086485,42218.0,42212.0,0.18345181]
[1646337605552,0.8285485,42218.0,42212.0,0.015948]
[1646337605749,0.8285485,42218.0,42211.0,11.49083]
[1646337606351,0.8758485,42218.0,42211.0,11.04143]
[1646337606752,0.00104919,42214.0,42211.0,11.04143]
[1646337606950,0.8758485,42218.0,42211.0,11.04143]
[1646337607655,0.8778485,42218.0,42212.0,0.00014743]
[1646337608298,0.8778485,42218.0,42212.0,0.00044229]
[1646337608299,0.00104919,42215.0,42212.0,0.00044229]
[1646337608699,0.00104919,42215.0,42212.0,0.00029486]
[1646337608900,1.0445285,42218.0,42211.0,11.04143]
[1646337609299,1.0208485,42218.0,42213.0,0.55552534]
[1646337609799,0.00104919,42216.0,42213.0,0.55552534]
[1646337610099,1.0445285,42218.0,42213.0,0.55552534]
[1646337610100,1.0208485,42218.0,42213.0,0.55552534]
[1646337611000,0.7672,42218.0,42213.0,0.55565618]
[1646337611198,0.00104919,42216.0,42214.0,0.015947]
[1646337611603,0.00104919,42216.0,42213.0,0.55578702]
[1646337611800,0.1923,42215.0,42213.0,0.78591786]
[1646337612042,0.0473,42214.0,42213.0,0.78578702]
[1646337612245,0.0473,42214.0,42213.0,0.78565618]
[1646337612645,0.0473,42214.0,42213.0,0.78552534]
[1646337612948,0.04834919,42214.0,42213.0,0.78552534]
[1646337613345,0.04834919,42214.0,42213.0,0.80448134]
[1646337613543,0.04834919,42214.0,42213.0,0.78552534]
[1646337613745,0.04834919,42214.0,42213.0,0.78652534]
[1646337614043,0.04834919,42214.0,42213.0,0.78385745]
[1646337614344,0.04834919,42214.0,42213.0,0.50875628]
[1646337614744,0.04834919,42214.0,42213.0,0.78385745]
[1646337614949,0.04834919,42214.0,42213.0,0.78285745]
[1646337615346,0.04834919,42214.0,42213.0,0.79880845]
[1646337615788,0.04834919,42214.0,42213.0,0.79980845]
[1646337616389,0.00104919,42214.0,42213.0,0.79980845]
[1646337616589,0.00104919,42214.0,42213.0,0.78385745]
[1646337616988,0.00104919,42214.0,42213.0,0.78285745]
[1646337617589,0.00204919,42214.0,42213.0,0.78285745]
[1646337618992,0.00104919,42214.0,42213.0,0.78285745]
[1646337619642,0.00304919,42214.0,42213.0,0.78285745]
[1646337621042,0.00104919,42214.0,42213.0,0.78285745]
[1646337621642,0.00204919,42214.0,42213.0,0.78285745]
[1646337622945,0.00104919,42214.0,42213.0,0.78285745]
[1646337623297,0.57631343,42214.0,42213.0,0.78285745]
[1646337623502,0.62361343,42214.0,42213.0,0.78285745]
[1646337623798,0.62661343,42214.0,42213.0,0.78285745]
[1646337623998,0.81502126,42214.0,42213.0,0.78285745]
[1646337624196,0.97685126,42214.0,42213.0,0.78285745]
[1646337624400,1.07772392,42214.0,42213.0,0.78285745]
[1646337624797,1.07772392,42214.0,42213.0,0.75995745]
[1646337624998,1.17472392,42214.0,42213.0,0.50510117]
[1646337625297,1.17472392,42214.0,42213.0,0.75995745]
[1646337625496,1.17472392,42214.0,42211.0,8.5696983]
[1646337625497,0.95,42213.0,42211.0,8.5696983]
[1646337625696,0.721389,42212.0,42211.0,5.64025468]
[1646337625900,2.66549,42211.0,42199.0,0.0011]
[1646337626103,0.145,42200.0,42199.0,0.0011]
[1646337626397,0.7713972,42200.0,42199.0,0.0011]
[1646337626598,0.88104788,42200.0,42199.0,0.0011]
[1646337626797,1.43104788,42200.0,42199.0,0.0011]
[1646337627042,1.28104788,42200.0,42199.0,0.0011]
[1646337627246,1.34035188,42200.0,42199.0,0.0011]
[1646337627446,1.40070404,42200.0,42199.0,0.0011]
[1646337627646,1.40070404,42200.0,42196.0,0.0022]
[1646337627647,0.95,42197.0,42196.0,0.0022]
[1646337627844,1.659559,42197.0,42196.0,0.0022]
[1646337628046,0.362259,42194.0,42192.0,0.0043]
[1646337628247,0.0473,42193.0,42192.0,0.0043]
[1646337628445,0.854559,42193.0,42192.0,0.0043]
[1646337628648,0.95,42192.0,42190.0,0.00115473]
[1646337628844,0.409559,42191.0,42190.0,0.00115473]
[1646337629045,0.709559,42191.0,42190.0,0.00115473]
[1646337629649,0.709559,42191.0,42181.0,0.0011]
[1646337629650,0.02368,42188.0,42181.0,0.0011]
[1646337629850,0.15789421,42186.0,42181.0,0.0011]
[1646337630048,0.507259,42182.0,42181.0,0.0011]
[1646337630247,0.554559,42182.0,42181.0,0.0011]
[1646337630446,1.27550819,42182.0,42181.0,0.0011]
[1646337631491,0.91324919,42182.0,42181.0,0.0011]
[1646337631692,1.28050819,42182.0,42181.0,0.0011]
[1646337631893,0.91824919,42182.0,42181.0,0.0011]
[1646337632092,1.28050819,42182.0,42181.0,0.0011]
[1646337632292,1.21824919,42182.0,42181.0,0.0011]
[1646337632492,0.91824919,42182.0,42181.0,0.2311]
[1646337632899,0.77324919,42182.0,42181.0,0.2311]
[1646337633592,0.76824919,42182.0,42181.0,0.2311]
[1646337633798,0.77024919,42182.0,42181.0,0.2311]
[1646337635039,0.76824919,42182.0,42181.0,0.2311]
[1646337635841,0.91324919,42182.0,42181.0,0.2311]
[1646337636242,1.27550819,42182.0,42181.0,0.2311]
[1646337636941,0.91324919,42182.0,42181.0,0.2311]
[1646337637740,0.77324919,42182.0,42181.0,0.2311]
[1646337638592,0.39895264,42182.0,42181.0,0.247113]
[1646337638989,0.39395264,42182.0,42181.0,0.247113]
[1646337639488,0.39395264,42182.0,42181.0,0.40838987]
[1646337639890,0.39395264,42182.0,42181.0,0.247113]
[1646337641291,0.39395264,42182.0,42181.0,0.2311]
[1646337641493,1.20121164,42182.0,42181.0,0.2311]
[1646337641694,1.00104362,42182.0,42181.0,0.2311]
[1646337642144,1.04834362,42182.0,42181.0,0.2311]
[1646337642545,0.58825264,42182.0,42181.0,0.2311]
[1646337642941,0.58625264,42182.0,42181.0,0.2311]
[1646337643942,0.44125264,42182.0,42181.0,0.2311]
[1646337644645,0.6120741,42182.0,42181.0,0.2311]
[1646337644843,1.08226353,42182.0,42181.0,0.2311]
[1646337646490,0.80351164,42182.0,42181.0,0.2311]
[1646337646690,0.39395264,42182.0,42181.0,0.2311]
[1646337647489,0.39395264,42182.0,42181.0,0.43170688]
[1646337647690,0.39395264,42182.0,42181.0,0.43270688]
[1646337649092,0.39395264,42182.0,42181.0,0.43170688]
[1646337649541,0.39395264,42182.0,42181.0,0.44771988]
[1646337649745,0.39695264,42182.0,42181.0,0.44771988]
[1646337650344,0.39695264,42182.0,42181.0,0.47139988]
[1646337650747,0.39695264,42182.0,42181.0,0.53536566]
[1646337650944,0.03518662,42200.0,42182.0,0.016003]
[1646337650945,0.3,42200.0,42182.0,0.016003]
[1646337651148,0.145,42207.0,42181.0,0.57424267]
[1646337651149,0.46399701,42182.0,42181.0,0.57363666]
[1646337651346,0.2499,42206.0,42185.0,0.02368]
[1646337651347,0.5499,42206.0,42185.0,0.02368]
[1646337651547,0.145,42210.0,42196.0,0.005]
[1646337652144,0.35697355,42210.0,42196.0,0.005]
[1646337652344,0.10541422,42205.0,42202.0,0.19792514]
[1646337652753,0.145,42210.0,42202.0,0.19792514]
[1646337652949,0.015,42212.0,42202.0,0.22160514]
[1646337653148,0.015,42212.0,42202.0,0.28228514]
[1646337653402,0.015,42212.0,42209.0,0.21587876]
[1646337653602,1.06420779,42217.0,42203.0,1.80378014]
[1646337653801,1.16664925,42217.0,42203.0,1.80378014]
[1646337654001,1.16664925,42217.0,42208.0,0.059259]
[1646337654201,1.16664925,42217.0,42209.0,0.01127511]
[1646337654400,1.16664925,42217.0,42210.0,0.01311589]
[1646337654602,0.18649857,42216.0,42212.0,0.01355799]
[1646337654804,0.145,42213.0,42209.0,0.00013998]
[1646337655208,0.10652854,42210.0,42209.0,0.00027996]
[1646337655403,0.10652854,42210.0,42209.0,0.00041994]
[1646337655600,0.10652854,42210.0,42209.0,0.00027996]
[1646337655803,0.10652854,42210.0,42209.0,0.00013998]
[1646337656102,0.007,42215.0,42208.0,0.01071155]
[1646337656302,0.007,42215.0,42202.0,0.15525181]
[1646337656509,0.007,42215.0,42202.0,0.16912921]
[1646337656803,0.007,42215.0,42206.0,0.01046816]
[1646337657046,0.09786395,42215.0,42206.0,0.01046816]
[1646337657448,0.145,42217.0,42206.0,0.01046816]
[1646337657853,0.145,42217.0,42208.0,0.00014634]
[1646337658648,0.145,42217.0,42208.0,0.00029268]
[1646337658850,0.24000001,42213.0,42208.0,0.00029268]
[1646337659049,0.24000001,42213.0,42209.0,0.15713095]
[1646337659252,0.24000001,42213.0,42210.0,0.01018134]
[1646337659452,0.24000001,42213.0,42212.0,0.01232395]
[1646337659652,0.24000001,42213.0,42209.0,0.15713095]
[1646337659852,0.24000001,42213.0,42210.0,0.01236206]
[1646337660051,0.24000001,42213.0,42212.0,0.01119627]
[1646337660252,0.24000001,42213.0,42209.0,0.15942363]
[1646337660653,0.24000001,42213.0,42209.0,0.15927729]
[1646337660897,0.24000001,42213.0,42209.0,0.15913095]
[1646337661100,0.24000001,42213.0,42209.0,0.15713095]
[1646337661297,0.24000001,42213.0,42209.0,0.00014634]
[1646337661500,0.145,42212.0,42209.0,0.00014634]
[1646337661701,0.145,42212.0,42209.0,8.634e-05]